[Event "*** SCC Grand Prix: Titled Tuesday Blitz"]
[Site "Chess.com"]
[Date "2020.07.14"]
[Round "1"]
[White "ChessWarrior7197"]
[Black "Siemba"]
[Result "1-0"]
[WhiteElo "2856"]
[BlackElo "2423"]
[TimeControl "180+1"]
[EndTime "10:07:59 PDT"]
[Termination "ChessWarrior7197 won by resignation"]

1. e4 {[%clk 0:03:00.9]} 1... d5 {[%clk 0:02:58.2]} 2. exd5 {[%clk 0:03:00.4]}
2... Nf6 {[%clk 0:02:58.9]} 3. d4 {[%clk 0:03:00.5]} 3... Bg4 {[%clk 0:02:57.4]}
4. Be2 {[%clk 0:02:55.2]} 4... Bxe2 {[%clk 0:02:44.7]} 5. Nxe2 {[%clk
0:02:54.6]} 5... Qxd5 {[%clk 0:02:45.6]} 6. O-O {[%clk 0:02:53.9]} 6... Nc6
{[%clk 0:02:46.4]} 7. Nbc3 {[%clk 0:02:53.3]} 7... Qh5 {[%clk 0:02:46.3]} 8. d5
{[%clk 0:02:37.7]} 8... O-O-O {[%clk 0:02:46.1]} 9. Nf4 {[%clk 0:02:18.4]} 9...
Qxd1 {[%clk 0:02:45.6]} 10. Rxd1 {[%clk 0:02:18.6]} 10... Nb4 {[%clk 0:02:46.4]}
11. a3 {[%clk 0:02:15.5]} 11... Nxc2 {[%clk 0:02:40.8]} 12. Ra2 {[%clk
0:02:15.8]} 12... e5 {[%clk 0:02:03.2]} 13. dxe6 {[%clk 0:02:14.6]} 13... Rxd1+
{[%clk 0:02:03.1]} 14. Nxd1 {[%clk 0:02:15.5]} 14... Bd6 {[%clk 0:01:55.5]} 15.
exf7 {[%clk 0:02:07.8]} 15... Nd4 {[%clk 0:01:24.5]} 16. Kf1 {[%clk 0:02:04.7]}
16... Rf8 {[%clk 0:01:23.4]} 17. b4 {[%clk 0:01:48.2]} 17... Rxf7 {[%clk
0:01:19.2]} 18. Nd3 {[%clk 0:01:46.4]} 18... Ng4 {[%clk 0:01:03.5]} 19. h3
{[%clk 0:01:43.6]} 19... Ne5 {[%clk 0:01:02.2]} 20. Nxe5 {[%clk 0:01:39.3]}
20... Bxe5 {[%clk 0:01:03.1]} 21. Ne3 {[%clk 0:01:39.6]} 21... Nb3 {[%clk
0:00:55.8]} 22. Bb2 {[%clk 0:01:37.6]} 22... Nd2+ {[%clk 0:00:48.6]} 23. Ke2
{[%clk 0:01:34.2]} 23... Bxb2 {[%clk 0:00:48.9]} 24. Rxb2 {[%clk 0:01:32.7]}
24... Ne4 {[%clk 0:00:49.6]} 25. f3 {[%clk 0:01:30.2]} 25... Ng3+ {[%clk
0:00:40.9]} 26. Ke1 {[%clk 0:01:27.5]} 26... Re7 {[%clk 0:00:35.1]} 27. Kf2
{[%clk 0:01:27.1]} 27... Nh1+ {[%clk 0:00:31.1]} 28. Ke2 {[%clk 0:01:27.3]}
28... Ng3+ {[%clk 0:00:30.4]} 29. Kd3 {[%clk 0:01:25.3]} 29... Rd7+ {[%clk
0:00:27.6]} 30. Kc4 {[%clk 0:01:25.6]} 30... c6 {[%clk 0:00:25.2]} 31. a4 {[%clk
0:01:22.8]} 31... a6 {[%clk 0:00:24.2]} 32. a5 {[%clk 0:01:19.3]} 32... Re7
{[%clk 0:00:20.9]} 33. Rb3 {[%clk 0:01:16]} 33... Kc7 {[%clk 0:00:18.8]} 34. Rd3
{[%clk 0:01:15]} 34... Nh5 {[%clk 0:00:17.8]} 35. Nf5 {[%clk 0:01:11.1]} 35...
Rf7 {[%clk 0:00:17.1]} 36. Nd4 {[%clk 0:01:06.3]} 36... Nf4 {[%clk 0:00:16.7]}
37. Rd2 {[%clk 0:01:06.7]} 37... Re7 {[%clk 0:00:16.2]} 38. h4 {[%clk
0:01:01.4]} 38... g6 {[%clk 0:00:16.4]} 39. Nb3 {[%clk 0:00:56.5]} 39... Nd5
{[%clk 0:00:15.3]} 40. Nc5 {[%clk 0:00:56.4]} 40... Re3 {[%clk 0:00:14.5]} 41.
Nd3 {[%clk 0:00:55.6]} 41... Kd6 {[%clk 0:00:14]} 42. Kd4 {[%clk 0:00:46.9]}
42... Re7 {[%clk 0:00:13.1]} 43. f4 {[%clk 0:00:45.5]} 43... Rf7 {[%clk
0:00:12.2]} 44. Rf2 {[%clk 0:00:45.7]} 44... Re7 {[%clk 0:00:12.3]} 45. g4
{[%clk 0:00:45.5]} 45... Nf6 {[%clk 0:00:12.4]} 46. Ne5 {[%clk 0:00:45.6]} 46...
Nd5 {[%clk 0:00:09.6]} 47. Nc4+ {[%clk 0:00:43.2]} 47... Kc7 {[%clk 0:00:09]}
48. f5 {[%clk 0:00:43.7]} 48... gxf5 {[%clk 0:00:09.1]} 49. gxf5 {[%clk
0:00:44.6]} 49... Nxb4 {[%clk 0:00:09.6]} 50. f6 {[%clk 0:00:45.1]} 50... Rf7
{[%clk 0:00:09.2]} 51. Ne5 {[%clk 0:00:43.6]} 51... Rf8 {[%clk 0:00:09.7]} 52.
f7 {[%clk 0:00:42.3]} 52... Kd6 {[%clk 0:00:09.5]} 53. Rf6+ {[%clk 0:00:39.4]}
53... Ke7 {[%clk 0:00:08.9]} 54. Rh6 {[%clk 0:00:40.3]} 54... Nd5 {[%clk
0:00:06.3]} 55. Rxh7 {[%clk 0:00:40.1]} 55... Nf4 {[%clk 0:00:05.2]} 56. Ke4
{[%clk 0:00:39.4]} 56... Nd5 {[%clk 0:00:02.8]} 57. Ng6+ {[%clk 0:00:39.5]}
57... Ke6 {[%clk 0:00:02.4]} 58. Nxf8+ {[%clk 0:00:39.5]} 58... Ke7 {[%clk
0:00:02.6]} 59. Ng6+ {[%clk 0:00:39.5]} 1-0

[Event "*** SCC Grand Prix: Titled Tuesday Blitz"]
[Site "Chess.com"]
[Date "2020.07.14"]
[Round "1"]
[White "jens1102"]
[Black "Sam_ChessMood"]
[Result "1/2-1/2"]
[WhiteElo "2424"]
[BlackElo "2815"]
[TimeControl "180+1"]
[EndTime "10:07:59 PDT"]
[Termination "Game drawn by repetition"]

1. c4 {[%clk 0:02:59]} 1... e5 {[%clk 0:02:58.5]} 2. g3 {[%clk 0:02:59.6]} 2...
d5 {[%clk 0:02:57.8]} 3. cxd5 {[%clk 0:02:58.2]} 3... Qxd5 {[%clk 0:02:58.7]} 4.
Nf3 {[%clk 0:02:58.6]} 4... Nc6 {[%clk 0:02:58.5]} 5. Nc3 {[%clk 0:02:58.5]}
5... Qd8 {[%clk 0:02:58.5]} 6. Bg2 {[%clk 0:02:58.9]} 6... Nf6 {[%clk
0:02:58.9]} 7. O-O {[%clk 0:02:58.9]} 7... h6 {[%clk 0:02:59.2]} 8. d3 {[%clk
0:02:56.9]} 8... Bd6 {[%clk 0:02:59.3]} 9. Nd2 {[%clk 0:02:55.5]} 9... O-O
{[%clk 0:02:58.6]} 10. Nc4 {[%clk 0:02:55.2]} 10... Re8 {[%clk 0:02:33.3]} 11.
Nxd6 {[%clk 0:02:46.8]} 11... cxd6 {[%clk 0:02:25.4]} 12. a3 {[%clk 0:02:22]}
12... d5 {[%clk 0:02:15]} 13. b4 {[%clk 0:02:18.8]} 13... Bf5 {[%clk 0:01:49.5]}
14. Bb2 {[%clk 0:02:16.2]} 14... Qd7 {[%clk 0:01:33.7]} 15. Na4 {[%clk
0:02:08.9]} 15... b6 {[%clk 0:01:33.7]} 16. Rc1 {[%clk 0:02:08.6]} 16... Rac8
{[%clk 0:01:33.6]} 17. Re1 {[%clk 0:01:40.1]} 17... Bh3 {[%clk 0:01:32.1]} 18.
Bh1 {[%clk 0:01:40.3]} 18... Qf5 {[%clk 0:01:23.8]} 19. e4 {[%clk 0:01:29.8]}
19... dxe4 {[%clk 0:01:18.3]} 20. dxe4 {[%clk 0:01:30.7]} 20... Qe6 {[%clk
0:01:05.1]} 21. Qf3 {[%clk 0:00:43.2]} 21... h5 {[%clk 0:00:53.7]} 22. Bg2
{[%clk 0:00:40.1]} 22... Bxg2 {[%clk 0:00:46.5]} 23. Kxg2 {[%clk 0:00:41]} 23...
Red8 {[%clk 0:00:42.5]} 24. Red1 {[%clk 0:00:38.8]} 24... Rxd1 {[%clk
0:00:40.2]} 25. Rxd1 {[%clk 0:00:39.7]} 25... Ne7 {[%clk 0:00:40.3]} 26. Rc1
{[%clk 0:00:19.3]} 26... Rxc1 {[%clk 0:00:39.3]} 27. Bxc1 {[%clk 0:00:20.2]}
27... Nc6 {[%clk 0:00:24.5]} 28. Bg5 {[%clk 0:00:18.4]} 28... Nd4 {[%clk
0:00:24.2]} 29. Qd3 {[%clk 0:00:18]} 29... Ne8 {[%clk 0:00:17.2]} 30. Nc3 {[%clk
0:00:16.2]} 30... Nc7 {[%clk 0:00:17.1]} 31. Be3 {[%clk 0:00:15.8]} 31... Qd6
{[%clk 0:00:12.2]} 32. Bxd4 {[%clk 0:00:14.4]} 32... exd4 {[%clk 0:00:12.6]} 33.
Ne2 {[%clk 0:00:13.1]} 33... Ne6 {[%clk 0:00:13]} 34. f4 {[%clk 0:00:13.2]}
34... Qc6 {[%clk 0:00:10.8]} 35. f5 {[%clk 0:00:13.1]} 35... Ng5 {[%clk
0:00:10.6]} 36. Nxd4 {[%clk 0:00:12.9]} 36... Qxe4+ {[%clk 0:00:09.2]} 37. Qxe4
{[%clk 0:00:13.4]} 37... Nxe4 {[%clk 0:00:10.1]} 38. Nc6 {[%clk 0:00:12.7]}
38... a6 {[%clk 0:00:08.5]} 39. a4 {[%clk 0:00:11.8]} 39... Nd6 {[%clk 0:00:03]}
40. a5 {[%clk 0:00:11.8]} 40... bxa5 {[%clk 0:00:03]} 41. bxa5 {[%clk
0:00:12.7]} 41... Kf8 {[%clk 0:00:02]} 42. f6 {[%clk 0:00:10.2]} 42... gxf6
{[%clk 0:00:02]} 43. Nb8 {[%clk 0:00:10.8]} 43... Nc4 {[%clk 0:00:02.1]} 44.
Nxa6 {[%clk 0:00:11.5]} 44... Nxa5 {[%clk 0:00:01.9]} 45. Nc5 {[%clk 0:00:12.4]}
45... Kg7 {[%clk 0:00:01.6]} 46. Ne4 {[%clk 0:00:12.8]} 46... Nc6 {[%clk
0:00:02]} 47. Nd6 {[%clk 0:00:12.9]} 47... Ne5 {[%clk 0:00:02.9]} 48. Nf5+
{[%clk 0:00:13.3]} 48... Kg6 {[%clk 0:00:03.5]} 49. Ne7+ {[%clk 0:00:14]} 49...
Kg5 {[%clk 0:00:04]} 50. h4+ {[%clk 0:00:13.8]} 50... Kh6 {[%clk 0:00:04.6]} 51.
Nd5 {[%clk 0:00:14.3]} 51... Kg6 {[%clk 0:00:04.9]} 52. Nf4+ {[%clk 0:00:14.8]}
52... Kh6 {[%clk 0:00:05.4]} 53. Nd5 {[%clk 0:00:15.5]} 53... Ng4 {[%clk
0:00:05.8]} 54. Kf3 {[%clk 0:00:14.3]} 54... Ne5+ {[%clk 0:00:05.8]} 55. Kg2
{[%clk 0:00:14.2]} 1/2-1/2

[Event "*** SCC Grand Prix: Titled Tuesday Blitz"]
[Site "Chess.com"]
[Date "2020.07.14"]
[Round "1"]
[White "ellatambien"]
[Black "Euge_chess"]
[Result "1-0"]
[WhiteElo "2481"]
[BlackElo "2005"]
[TimeControl "180+1"]
[EndTime "10:08:00 PDT"]
[Termination "ellatambien won on time"]

1. e4 {[%clk 0:02:58.1]} 1... e5 {[%clk 0:02:47.4]} 2. Nf3 {[%clk 0:02:54.5]}
2... Nc6 {[%clk 0:02:47]} 3. d4 {[%clk 0:02:53.5]} 3... exd4 {[%clk 0:02:46.6]}
4. Nxd4 {[%clk 0:02:53.4]} 4... Bc5 {[%clk 0:02:46.3]} 5. Nb3 {[%clk 0:02:51]}
5... Bb6 {[%clk 0:02:45.6]} 6. Nc3 {[%clk 0:02:49.8]} 6... d6 {[%clk 0:02:44.8]}
7. Bf4 {[%clk 0:02:25.1]} 7... Nf6 {[%clk 0:02:39.9]} 8. Qd2 {[%clk 0:02:20.2]}
8... O-O {[%clk 0:02:37.8]} 9. O-O-O {[%clk 0:02:19.5]} 9... a5 {[%clk
0:02:34.9]} 10. a4 {[%clk 0:02:16.5]} 10... Be6 {[%clk 0:02:27.8]} 11. Bg5
{[%clk 0:02:13.8]} 11... Bxb3 {[%clk 0:02:19.5]} 12. cxb3 {[%clk 0:02:13.1]}
12... h6 {[%clk 0:02:13.6]} 13. Bxf6 {[%clk 0:01:44.4]} 13... Qxf6 {[%clk
0:02:11.8]} 14. f4 {[%clk 0:01:29.1]} 14... Nd4 {[%clk 0:01:57.3]} 15. Bc4
{[%clk 0:01:28.1]} 15... c6 {[%clk 0:01:46.1]} 16. Kb1 {[%clk 0:01:07]} 16...
Rfd8 {[%clk 0:01:43.6]} 17. Ka2 {[%clk 0:00:44.8]} 17... Rac8 {[%clk 0:01:37.6]}
18. h4 {[%clk 0:00:41.6]} 18... Bc5 {[%clk 0:01:29.3]} 19. g4 {[%clk 0:00:38.1]}
19... Nf3 {[%clk 0:01:07.5]} 20. Qc1 {[%clk 0:00:35.1]} 20... Nd4 {[%clk
0:00:59.6]} 21. g5 {[%clk 0:00:31.8]} 21... Qe7 {[%clk 0:00:36.6]} 22. gxh6
{[%clk 0:00:30]} 22... Bb4 {[%clk 0:00:20]} 23. Rxd4 {[%clk 0:00:21.1]} 23... d5
{[%clk 0:00:17.3]} 24. Be2 {[%clk 0:00:15.3]} 24... dxe4 {[%clk 0:00:13.9]} 25.
Qg1 {[%clk 0:00:11.1]} 25... f5 {[%clk 0:00:11.1]} 26. Rxd8+ {[%clk 0:00:08.9]}
26... Rxd8 {[%clk 0:00:10.7]} 27. Qxg7+ {[%clk 0:00:09]} 27... Qxg7 {[%clk
0:00:09.9]} 28. hxg7 {[%clk 0:00:09.1]} 28... Kxg7 {[%clk 0:00:09.8]} 29. Rd1
{[%clk 0:00:08.3]} 29... Rh8 {[%clk 0:00:09]} 30. Rd7+ {[%clk 0:00:07.9]} 30...
Kf6 {[%clk 0:00:08.7]} 31. h5 {[%clk 0:00:08]} 31... b6 {[%clk 0:00:06.9]} 32.
Rc7 {[%clk 0:00:06.7]} 32... c5 {[%clk 0:00:05.8]} 33. Nd5+ {[%clk 0:00:06.4]}
33... Ke6 {[%clk 0:00:04.6]} 34. Nxb4 {[%clk 0:00:06.5]} 34... axb4 {[%clk
0:00:04.1]} 35. Rc6+ {[%clk 0:00:06.6]} 35... Kd5 {[%clk 0:00:03.7]} 36. Rxb6
{[%clk 0:00:06.7]} 36... e3 {[%clk 0:00:03.3]} 37. a5 {[%clk 0:00:06.9]} 37...
Ke4 {[%clk 0:00:03]} 38. a6 {[%clk 0:00:07.1]} 38... Kxf4 {[%clk 0:00:02.7]} 39.
a7 {[%clk 0:00:03.4]} 39... Ra8 {[%clk 0:00:02.7]} 40. Rb7 {[%clk 0:00:03.4]}
40... Kg3 {[%clk 0:00:02.2]} 41. h6 {[%clk 0:00:03.4]} 41... Kf2 {[%clk
0:00:01.6]} 42. Bh5 {[%clk 0:00:02.1]} 42... f4 {[%clk 0:00:01.3]} 43. h7 {[%clk
0:00:02.3]} 1-0

[Event "*** SCC Grand Prix: Titled Tuesday Blitz"]
[Site "Chess.com"]
[Date "2020.07.14"]
[Round "1"]
[White "ChainsOfFantasia"]
[Black "teacher4chess"]
[Result "1-0"]
[WhiteElo "2471"]
[BlackElo "2009"]
[TimeControl "180+1"]
[EndTime "10:08:01 PDT"]
[Termination "ChainsOfFantasia won by checkmate"]

1. c4 {[%clk 0:03:00.5]} 1... e6 {[%clk 0:02:58.1]} 2. Nc3 {[%clk 0:02:56.5]}
2... Nf6 {[%clk 0:02:58]} 3. e4 {[%clk 0:02:56]} 3... d5 {[%clk 0:02:55.8]} 4.
e5 {[%clk 0:02:56.3]} 4... Nfd7 {[%clk 0:02:55.5]} 5. d4 {[%clk 0:02:52.3]} 5...
dxc4 {[%clk 0:02:52.5]} 6. Bxc4 {[%clk 0:02:53.2]} 6... Nb6 {[%clk 0:02:52.4]}
7. Bb3 {[%clk 0:02:51.7]} 7... c5 {[%clk 0:02:50]} 8. Nf3 {[%clk 0:02:51.1]}
8... Nc6 {[%clk 0:02:46.4]} 9. O-O {[%clk 0:02:42.2]} 9... cxd4 {[%clk
0:02:43.1]} 10. Nb5 {[%clk 0:02:42.2]} 10... Be7 {[%clk 0:02:22.9]} 11. Re1
{[%clk 0:02:14.2]} 11... O-O {[%clk 0:02:21.3]} 12. Nbxd4 {[%clk 0:02:04.2]}
12... Bd7 {[%clk 0:01:56.3]} 13. Bf4 {[%clk 0:01:59.6]} 13... Nd5 {[%clk
0:01:30.4]} 14. Bxd5 {[%clk 0:01:56.8]} 14... exd5 {[%clk 0:01:30.2]} 15. Rc1
{[%clk 0:01:47]} 15... Rc8 {[%clk 0:01:14.4]} 16. Qb3 {[%clk 0:01:41.1]} 16...
Qb6 {[%clk 0:00:57.1]} 17. Qxb6 {[%clk 0:01:02.7]} 17... axb6 {[%clk 0:00:56.4]}
18. h3 {[%clk 0:00:53.5]} 18... Bb4 {[%clk 0:00:47.4]} 19. Red1 {[%clk
0:00:51.4]} 19... Nxd4 {[%clk 0:00:28.7]} 20. Nxd4 {[%clk 0:00:52.3]} 20... Rxc1
{[%clk 0:00:24.3]} 21. Rxc1 {[%clk 0:00:51.7]} 21... Rc8 {[%clk 0:00:24.6]} 22.
Rxc8+ {[%clk 0:00:48.2]} 22... Bxc8 {[%clk 0:00:24.9]} 23. Kf1 {[%clk 0:00:47]}
23... Bd7 {[%clk 0:00:22.1]} 24. Ke2 {[%clk 0:00:46.3]} 24... Kf8 {[%clk
0:00:20.3]} 25. Kd3 {[%clk 0:00:45.4]} 25... Bc5 {[%clk 0:00:20.8]} 26. Nc2
{[%clk 0:00:32.7]} 26... Bxf2 {[%clk 0:00:19.6]} 27. Be3 {[%clk 0:00:33]} 27...
Bxe3 {[%clk 0:00:18.5]} 28. Nxe3 {[%clk 0:00:33.7]} 28... Bc6 {[%clk 0:00:18.9]}
29. Kd4 {[%clk 0:00:33.3]} 29... Ke7 {[%clk 0:00:18.6]} 30. Nf5+ {[%clk
0:00:30.6]} 30... Kf8 {[%clk 0:00:11]} 31. g3 {[%clk 0:00:30.4]} 31... Bd7
{[%clk 0:00:10.2]} 32. g4 {[%clk 0:00:28]} 32... Bxf5 {[%clk 0:00:09.9]} 33.
gxf5 {[%clk 0:00:27.3]} 33... g6 {[%clk 0:00:09.5]} 34. f6 {[%clk 0:00:10.9]}
34... h5 {[%clk 0:00:08.9]} 35. h4 {[%clk 0:00:08.5]} 35... Ke8 {[%clk
0:00:08.4]} 36. Kxd5 {[%clk 0:00:08.5]} 36... Kd7 {[%clk 0:00:08.5]} 37. a4
{[%clk 0:00:06.7]} 37... b5 {[%clk 0:00:07.7]} 38. axb5 {[%clk 0:00:06.3]} 38...
b6 {[%clk 0:00:08.1]} 39. b3 {[%clk 0:00:06.6]} 39... Ke8 {[%clk 0:00:06.2]} 40.
e6 {[%clk 0:00:05.6]} 40... fxe6+ {[%clk 0:00:06.1]} 41. Kxe6 {[%clk 0:00:06.5]}
41... g5 {[%clk 0:00:06.1]} 42. hxg5 {[%clk 0:00:06.2]} 42... h4 {[%clk
0:00:06.2]} 43. g6 {[%clk 0:00:07.1]} 43... h3 {[%clk 0:00:06.8]} 44. g7 {[%clk
0:00:07.5]} 44... h2 {[%clk 0:00:06.5]} 45. g8=Q# {[%clk 0:00:08.4]} 1-0

[Event "*** SCC Grand Prix: Titled Tuesday Blitz"]
[Site "Chess.com"]
[Date "2020.07.14"]
[Round "1"]
[White "SHIVACalypso"]
[Black "Shield12"]
[Result "0-1"]
[WhiteElo "2419"]
[BlackElo "2835"]
[TimeControl "180+1"]
[EndTime "10:08:02 PDT"]
[Termination "Shield12 won by resignation"]

1. Nf3 {[%clk 0:03:00.9]} 1... c5 {[%clk 0:02:59.9]} 2. c4 {[%clk 0:02:58.7]}
2... Nc6 {[%clk 0:02:59.3]} 3. g3 {[%clk 0:02:58.1]} 3... g6 {[%clk 0:02:59.2]}
4. Bg2 {[%clk 0:02:58.3]} 4... Bg7 {[%clk 0:02:59.4]} 5. O-O {[%clk 0:02:58.8]}
5... e6 {[%clk 0:02:59.9]} 6. Nc3 {[%clk 0:02:57.7]} 6... Nge7 {[%clk
0:03:00.2]} 7. d3 {[%clk 0:02:56.8]} 7... O-O {[%clk 0:02:59.4]} 8. e4 {[%clk
0:02:56]} 8... d5 {[%clk 0:02:54.7]} 9. cxd5 {[%clk 0:02:56.9]} 9... exd5 {[%clk
0:02:55.6]} 10. Bd2 {[%clk 0:02:54.9]} 10... dxe4 {[%clk 0:02:50.1]} 11. dxe4
{[%clk 0:02:55.8]} 11... b6 {[%clk 0:02:49]} 12. Bg5 {[%clk 0:02:43.6]} 12... h6
{[%clk 0:02:47]} 13. Qxd8 {[%clk 0:02:35.2]} 13... Rxd8 {[%clk 0:02:47.9]} 14.
Bxe7 {[%clk 0:02:35.5]} 14... Nxe7 {[%clk 0:02:46.7]} 15. Rad1 {[%clk
0:02:32.3]} 15... Bb7 {[%clk 0:02:45.4]} 16. Nd2 {[%clk 0:02:18]} 16... Nc6
{[%clk 0:02:41.9]} 17. f4 {[%clk 0:02:06.4]} 17... Bd4+ {[%clk 0:02:19.1]} 18.
Kh1 {[%clk 0:02:05.3]} 18... Nb4 {[%clk 0:02:18.9]} 19. Ndb1 {[%clk 0:01:23.6]}
19... Nc2 {[%clk 0:01:59.9]} 20. Rd2 {[%clk 0:01:12]} 20... Ne3 {[%clk
0:01:58.5]} 21. Re1 {[%clk 0:01:12]} 21... Nxg2 {[%clk 0:01:51.1]} 22. Kxg2
{[%clk 0:01:05]} 22... f5 {[%clk 0:01:50.4]} 23. Rde2 {[%clk 0:00:59.3]} 23...
Re8 {[%clk 0:01:22.1]} 24. Kf3 {[%clk 0:00:55.2]} 24... Re7 {[%clk 0:01:19.3]}
25. Nd2 {[%clk 0:00:37.7]} 25... Rae8 {[%clk 0:01:17.7]} 26. g4 {[%clk
0:00:30.6]} 26... Kf7 {[%clk 0:01:04.9]} 27. h4 {[%clk 0:00:24.1]} 27... h5
{[%clk 0:00:55.9]} 28. gxh5 {[%clk 0:00:15.4]} 28... gxh5 {[%clk 0:00:55.9]} 29.
Rg2 {[%clk 0:00:14.9]} 29... Bxc3 {[%clk 0:00:44.8]} 30. bxc3 {[%clk 0:00:15.8]}
30... Rxe4 {[%clk 0:00:40.6]} 31. Nxe4 {[%clk 0:00:12.4]} 31... Bxe4+ {[%clk
0:00:34.1]} 32. Rxe4 {[%clk 0:00:08.3]} 32... Rxe4 {[%clk 0:00:35]} 33. Rg5
{[%clk 0:00:07.4]} 33... Kf6 {[%clk 0:00:35.3]} 34. Rxh5 {[%clk 0:00:07.5]}
34... Ra4 {[%clk 0:00:35.4]} 35. Rh6+ {[%clk 0:00:07.4]} 35... Kg7 {[%clk
0:00:35.8]} 36. Rh5 {[%clk 0:00:07.8]} 36... Kg6 {[%clk 0:00:36]} 37. Rg5+
{[%clk 0:00:07.9]} 37... Kf6 {[%clk 0:00:36.6]} 38. h5 {[%clk 0:00:07.2]} 38...
Rxa2 {[%clk 0:00:36.5]} 39. Rg6+ {[%clk 0:00:07.5]} 39... Kf7 {[%clk 0:00:36.6]}
40. Rh6 {[%clk 0:00:07]} 40... Ra3 {[%clk 0:00:35]} 41. Rh7+ {[%clk 0:00:05.9]}
41... Kf6 {[%clk 0:00:35.2]} 42. Rc7 {[%clk 0:00:05.4]} 42... Rxc3+ {[%clk
0:00:34.6]} 43. Kg2 {[%clk 0:00:06.3]} 43... Re3 {[%clk 0:00:26.5]} 44. Rxa7
{[%clk 0:00:04.8]} 44... Re7 {[%clk 0:00:26.2]} 45. Ra6 {[%clk 0:00:04.3]} 45...
Rb7 {[%clk 0:00:25.7]} 46. Kg3 {[%clk 0:00:03.3]} 46... c4 {[%clk 0:00:24.1]}
47. Kf3 {[%clk 0:00:02.7]} 47... Ke6 {[%clk 0:00:20.5]} 48. Ke3 {[%clk 0:00:02]}
48... Kd5 {[%clk 0:00:20.7]} 49. Kd2 {[%clk 0:00:02.4]} 49... Kd4 {[%clk
0:00:20.5]} 50. Kc2 {[%clk 0:00:02.4]} 50... Rh7 {[%clk 0:00:19.6]} 51. Rxb6
{[%clk 0:00:02]} 51... Rxh5 {[%clk 0:00:19.7]} 52. Rd6+ {[%clk 0:00:02.9]} 52...
Ke4 {[%clk 0:00:19.8]} 53. Kc3 {[%clk 0:00:02.9]} 53... Kxf4 {[%clk 0:00:18.8]}
54. Kxc4 {[%clk 0:00:03.5]} 54... Rh1 {[%clk 0:00:18.6]} 55. Kd3 {[%clk
0:00:03.9]} 55... Rd1+ {[%clk 0:00:18.5]} 56. Ke2 {[%clk 0:00:04.1]} 56... Rxd6
{[%clk 0:00:19.4]} 0-1

[Event "*** SCC Grand Prix: Titled Tuesday Blitz"]
[Site "Chess.com"]
[Date "2020.07.14"]
[Round "1"]
[White "heyiampotato"]
[Black "winniethepooh04"]
[Result "1-0"]
[WhiteElo "2532"]
[BlackElo "2196"]
[TimeControl "180+1"]
[EndTime "10:08:03 PDT"]
[Termination "heyiampotato won on time"]

1. d4 {[%clk 0:02:58.1]} 1... Nf6 {[%clk 0:02:58]} 2. Nf3 {[%clk 0:02:56.3]}
2... g6 {[%clk 0:02:57.3]} 3. Nbd2 {[%clk 0:02:55.8]} 3... Bg7 {[%clk
0:02:57.6]} 4. e4 {[%clk 0:02:55.7]} 4... O-O {[%clk 0:02:57.9]} 5. e5 {[%clk
0:02:55.4]} 5... Nd5 {[%clk 0:02:54.1]} 6. c4 {[%clk 0:02:53.3]} 6... Nb6 {[%clk
0:02:53.8]} 7. c5 {[%clk 0:02:53.6]} 7... Nd5 {[%clk 0:02:53]} 8. Bc4 {[%clk
0:02:53.7]} 8... c6 {[%clk 0:02:48.9]} 9. Ne4 {[%clk 0:02:47.8]} 9... b6 {[%clk
0:02:41.9]} 10. h4 {[%clk 0:02:34.5]} 10... Ba6 {[%clk 0:02:35.7]} 11. Bxa6
{[%clk 0:02:27.1]} 11... Nxa6 {[%clk 0:02:34.9]} 12. h5 {[%clk 0:02:18.4]} 12...
bxc5 {[%clk 0:02:32.9]} 13. hxg6 {[%clk 0:02:16]} 13... fxg6 {[%clk 0:02:29.8]}
14. Nfg5 {[%clk 0:01:43]} 14... h6 {[%clk 0:02:13.1]} 15. Nf3 {[%clk 0:01:42.6]}
15... cxd4 {[%clk 0:01:56.1]} 16. Bxh6 {[%clk 0:01:34.8]} 16... Bxh6 {[%clk
0:01:43.9]} 17. Rxh6 {[%clk 0:01:35.7]} 17... Kg7 {[%clk 0:01:44.2]} 18. Qd2
{[%clk 0:01:30.4]} 18... Nf4 {[%clk 0:01:33.3]} 19. Rh2 {[%clk 0:01:12.5]} 19...
Nb4 {[%clk 0:01:13.9]} 20. Kf1 {[%clk 0:00:54.6]} 20... Qb6 {[%clk 0:00:57]} 21.
g3 {[%clk 0:00:47.3]} 21... Qb5+ {[%clk 0:00:51.4]} 22. Kg1 {[%clk 0:00:46.1]}
22... Ne2+ {[%clk 0:00:39.3]} 23. Kg2 {[%clk 0:00:46.1]} 23... Rxf3 {[%clk
0:00:26]} 24. Qh6+ {[%clk 0:00:42.9]} 24... Kf7 {[%clk 0:00:21.9]} 25. Ng5+
{[%clk 0:00:42.3]} 25... Ke8 {[%clk 0:00:20.5]} 26. Qxg6+ {[%clk 0:00:36.8]}
26... Kd8 {[%clk 0:00:19.8]} 27. Nxf3 {[%clk 0:00:32.8]} 27... Kc7 {[%clk
0:00:20]} 28. Rh7 {[%clk 0:00:30.2]} 28... Rf8 {[%clk 0:00:18.5]} 29. Rxe7
{[%clk 0:00:28.6]} 29... Kc8 {[%clk 0:00:14.6]} 30. Re8+ {[%clk 0:00:27.3]}
30... Rxe8 {[%clk 0:00:14]} 31. Qxe8+ {[%clk 0:00:28.2]} 31... Kc7 {[%clk
0:00:14.8]} 32. e6 {[%clk 0:00:27.6]} 32... Nd3 {[%clk 0:00:10.7]} 33. Qxd7+
{[%clk 0:00:27]} 33... Kb6 {[%clk 0:00:10.1]} 34. Nxd4 {[%clk 0:00:23.5]} 34...
Nxd4 {[%clk 0:00:06]} 35. Qxd4+ {[%clk 0:00:24.4]} 35... c5 {[%clk 0:00:06.2]}
36. Qd6+ {[%clk 0:00:23.3]} 36... Ka5 {[%clk 0:00:05.8]} 37. Qc7+ {[%clk
0:00:19.8]} 37... Ka4 {[%clk 0:00:04.9]} 38. b3+ {[%clk 0:00:19.5]} 38... Ka3
{[%clk 0:00:04.8]} 39. Qxa7+ {[%clk 0:00:18.8]} 39... Kb2 {[%clk 0:00:04.9]} 40.
Rd1 {[%clk 0:00:19.3]} 40... Qc6+ {[%clk 0:00:03.6]} 41. f3 {[%clk 0:00:17.4]}
41... Qxe6 {[%clk 0:00:03.5]} 42. Rxd3 {[%clk 0:00:10.5]} 42... Qe2+ {[%clk
0:00:03.4]} 43. Kh3 {[%clk 0:00:09.8]} 43... Qxd3 {[%clk 0:00:03.9]} 44. Qxc5
{[%clk 0:00:09.4]} 44... Qxf3 {[%clk 0:00:03.6]} 45. Qe5+ {[%clk 0:00:05.6]}
45... Kxa2 {[%clk 0:00:02.7]} 46. b4 {[%clk 0:00:02.3]} 46... Qh1+ {[%clk
0:00:01.3]} 47. Kg4 {[%clk 0:00:02.9]} 47... Qd1+ {[%clk 0:00:01.2]} 48. Kf5
{[%clk 0:00:03.6]} 1-0